[Event "18èmeFestival International d’Echecsde Rochefort"]
[Site "Rochefort, France"]
[Date "2019.02.20"]
[Round "7.4"]
[White "BOBADILLA VIERA, Jorge Samuel"]
[Black "DEMUTH, Adrien"]
[Result "1/2-1/2"]
[TimeControl "1h30 min/40coups + 30 min +  30sec/coup"]
[WhiteTitle "IM"]
[BlackTitle "GM"]
[BlackFideId "642274"]
[WhiteElo "2318"]
[BlackElo "2519"]

1. c4 {[%clk 01:24:39]} {[%emt 00:06:20]} f5 {[%clk 01:30:46]} {[%emt
00:00:15]} 2. Nf3 {[%clk 01:23:57]} {[%emt 00:01:12]} Nf6 {[%clk 01:31:10]}
{[%emt 00:00:06]} 3. Nc3 {[%clk 01:24:01]} {[%emt 00:00:26]} g6 {[%clk
01:31:02]} {[%emt 00:00:38]} 4. g3 {[%clk 01:23:11]} {[%emt 00:01:19]} Bg7
{[%clk 01:31:27]} {[%emt 00:00:05]} 5. Bg2 {[%clk 01:23:38]} {[%emt 00:00:03]}
O-O {[%clk 01:31:50]} {[%emt 00:00:07]} 6. O-O {[%clk 01:24:04]} {[%emt
00:00:04]} d6 {[%clk 01:32:18]} {[%emt 00:00:02]} 7. d4 {[%clk 01:24:21]}
{[%emt 00:00:13]} c6 {[%clk 01:32:45]} {[%emt 00:00:04]} 8. Qb3 {[%clk
01:22:10]} {[%emt 00:02:40]} Na6 {[%clk 01:27:16]} {[%emt 00:05:58]} 9. Rd1
{[%clk 01:20:14]} {[%emt 00:02:27]} Nc7 {[%clk 01:14:54]} {[%emt 00:12:53]} 10.
d5 {[%clk 01:05:47]} {[%emt 00:14:57]} c5 {[%clk 01:05:36]} {[%emt 00:09:48]}
11. Qc2 {[%clk 01:00:55]} {[%emt 00:05:21]} a6 {[%clk 01:01:03]} {[%emt
00:05:03]} 12. a4 {[%clk 00:57:37]} {[%emt 00:03:48]} Rb8 {[%clk 01:00:14]}
{[%emt 00:01:19]} 13. a5 {[%clk 00:57:24]} {[%emt 00:00:44]} b5 {[%clk
01:00:08]} {[%emt 00:00:36]} 14. axb6 {[%clk 00:57:18]} {[%emt 00:00:36]} Rxb6
{[%clk 01:00:35]} {[%emt 00:00:02]} 15. b3 {[%clk 00:54:30]} {[%emt 00:03:18]}
Bd7 {[%clk 00:56:43]} {[%emt 00:04:22]} 16. Bb2 {[%clk 00:53:27]} {[%emt
00:01:33]} Qb8 {[%clk 00:55:14]} {[%emt 00:01:59]} 17. Ra3 {[%clk 00:53:08]}
{[%emt 00:00:49]} f4 {[%clk 00:38:33]} {[%emt 00:17:12]} 18. Ng5 {[%clk
00:41:14]} {[%emt 00:12:24]} fxg3 {[%clk 00:33:00]} {[%emt 00:06:03]} 19. hxg3
{[%clk 00:41:26]} {[%emt 00:00:18]} Ng4 {[%clk 00:26:22]} {[%emt 00:07:08]} 20.
Nce4 {[%clk 00:35:49]} {[%emt 00:06:07]} Ne8 {[%clk 00:26:27]} {[%emt
00:00:25]} 21. Ne6 {[%clk 00:30:42]} {[%emt 00:05:37]} Bxe6 {[%clk 00:26:40]}
{[%emt 00:00:17]} 22. dxe6 {[%clk 00:31:01]} {[%emt 00:00:11]} Bxb2 {[%clk
00:25:11]} {[%emt 00:01:59]} 23. Qxb2 {[%clk 00:28:11]} {[%emt 00:03:20]} Nef6
{[%clk 00:21:45]} {[%emt 00:03:56]} 24. Nxf6+ {[%clk 00:24:13]} {[%emt
00:04:29]} Rxf6 {[%clk 00:20:41]} {[%emt 00:01:34]} 25. Bf3 {[%clk 00:24:17]}
{[%emt 00:00:26]} Ne5 {[%clk 00:20:39]} {[%emt 00:00:31]} 26. Bd5 {[%clk
00:24:14]} {[%emt 00:00:33]} Qf8 {[%clk 00:17:57]} {[%emt 00:03:13]} 27. f4
{[%clk 00:20:35]} {[%emt 00:04:09]} Qh6 {[%clk 00:14:10]} {[%emt 00:04:16]} 28.
e3 {[%clk 00:18:25]} {[%emt 00:02:40]} Ng4 {[%clk 00:09:21]} {[%emt 00:05:20]}
29. Re1 {[%clk 00:16:41]} {[%emt 00:02:14]} Rf8 {[%clk 00:08:29]} {[%emt
00:01:23]} 30. Qe2 {[%clk 00:13:04]} {[%emt 00:04:06]} Qh3 {[%clk 00:06:56]}
{[%emt 00:02:03]} 31. Qg2 {[%clk 00:13:32]} {[%emt 00:00:02]} Qxg2+ {[%clk
00:06:24]} {[%emt 00:01:02]} 32. Kxg2 {[%clk 00:14:00]} {[%emt 00:00:02]} Rfb8
{[%clk 00:06:45]} {[%emt 00:00:09]} 33. Kf3 {[%clk 00:13:54]} {[%emt 00:00:36]}
h5 {[%clk 00:06:58]} {[%emt 00:00:17]} 34. Be4 {[%clk 00:11:03]} {[%emt
00:03:21]} Kg7 {[%clk 00:06:33]} {[%emt 00:00:55]} 35. Bc2 {[%clk 00:11:23]}
{[%emt 00:00:09]} Rf8 {[%clk 00:04:47]} {[%emt 00:02:16]} 36. Rea1 {[%clk
00:08:28]} {[%emt 00:03:26]} Ra8 {[%clk 00:02:48]} {[%emt 00:02:29]} 37. Be4
{[%clk 00:06:44]} {[%emt 00:02:13]} Rf8 {[%clk 00:03:11]} {[%emt 00:00:08]} 38.
Bc2 {[%clk 00:07:09]} {[%emt 00:00:05]} Ra8 {[%clk 00:01:58]} {[%emt 00:01:43]}
39. Be4 {[%clk 00:06:49]} {[%emt 00:00:51]} Rab8 {[%clk 00:02:01]} {[%emt
00:00:27]} 40. Bc2 {[%clk 00:07:10]} {[%emt 00:00:09]} 1/2-1/2

[Event "18èmeFestival International d’Echecsde Rochefort"]
[Site "Rochefort, France"]
[Date "2019.02.20"]
[Round "7.3"]
[White "MU, Ke"]
[Black "DELORME, Axel"]
[Result "1/2-1/2"]
[TimeControl "1h30 min/40coups + 30 min +  30sec/coup"]
[BlackTitle "GM"]
[WhiteFideId "8602778"]
[BlackFideId "632023"]
[WhiteElo "2404"]
[BlackElo "2498"]

1. d4 {[%clk 01:29:27]} {[%emt 00:01:32]} Nf6 {[%clk 01:30:55]} {[%emt
00:00:06]} 2. c4 {[%clk 01:29:52]} {[%emt 00:00:04]} e6 {[%clk 01:31:23]}
{[%emt 00:00:03]} 3. Nc3 {[%clk 01:30:09]} {[%emt 00:00:13]} Bb4 {[%clk
01:31:48]} {[%emt 00:00:04]} 4. Qc2 {[%clk 01:30:34]} {[%emt 00:00:06]} O-O
{[%clk 01:31:58]} {[%emt 00:00:20]} 5. e4 {[%clk 01:30:14]} {[%emt 00:00:50]}
d6 {[%clk 01:32:13]} {[%emt 00:00:16]} 6. e5 {[%clk 01:29:43]} {[%emt
00:01:01]} dxe5 {[%clk 01:27:55]} {[%emt 00:04:48]} 7. dxe5 {[%clk 01:30:08]}
{[%emt 00:00:05]} Ng4 {[%clk 01:26:57]} {[%emt 00:01:28]} 8. Nf3 {[%clk
01:30:30]} {[%emt 00:00:07]} Nc6 {[%clk 01:26:06]} {[%emt 00:01:22]} 9. a3
{[%clk 01:30:30]} {[%emt 00:00:30]} Bxc3+ {[%clk 01:24:51]} {[%emt 00:01:44]}
10. Qxc3 {[%clk 01:30:52]} {[%emt 00:00:08]} f6 {[%clk 01:24:47]} {[%emt
00:00:35]} 11. exf6 {[%clk 01:28:22]} {[%emt 00:02:59]} Nxf6 {[%clk 01:23:24]}
{[%emt 00:01:53]} 12. Be3 {[%clk 01:28:45]} {[%emt 00:00:07]} e5 {[%clk
01:17:01]} {[%emt 00:06:54]} 13. Be2 {[%clk 01:14:13]} {[%emt 00:15:01]} Ne4
{[%clk 00:58:53]} {[%emt 00:18:38]} 14. Qd3 {[%clk 00:53:21]} {[%emt 00:21:22]}
Qxd3 {[%clk 00:41:45]} {[%emt 00:17:39]} 15. Bxd3 {[%clk 00:53:46]} {[%emt
00:00:05]} Nd6 {[%clk 00:42:09]} {[%emt 00:00:06]} 16. c5 {[%clk 00:50:57]}
{[%emt 00:03:19]} e4 {[%clk 00:40:28]} {[%emt 00:02:10]} 17. cxd6 {[%clk
00:50:30]} {[%emt 00:00:57]} exf3 {[%clk 00:39:26]} {[%emt 00:01:32]} 18. gxf3
{[%clk 00:49:03]} {[%emt 00:01:56]} cxd6 {[%clk 00:36:14]} {[%emt 00:03:43]} 19.
Bc4+ {[%clk 00:48:18]} {[%emt 00:01:15]} Kh8 {[%clk 00:36:37]} {[%emt
00:00:07]} 20. f4 {[%clk 00:48:45]} {[%emt 00:00:04]} Bf5 {[%clk 00:34:03]}
{[%emt 00:03:03]} 21. Bd5 {[%clk 00:44:35]} {[%emt 00:04:40]} Rae8 {[%clk
00:33:30]} {[%emt 00:01:02]} 22. Rd1 {[%clk 00:43:06]} {[%emt 00:01:58]} Rf6
{[%clk 00:33:07]} {[%emt 00:00:54]} 23. Rg1 {[%clk 00:43:02]} {[%emt 00:00:34]}
h6 {[%clk 00:30:20]} {[%emt 00:03:18]} 24. Kd2 {[%clk 00:39:10]} {[%emt
00:04:22]} Re7 {[%clk 00:27:17]} {[%emt 00:03:32]} 25. Rde1 {[%clk 00:31:59]}
{[%emt 00:07:41]} Be6 {[%clk 00:17:50]} {[%emt 00:09:57]} 26. Bxc6 {[%clk
00:27:08]} {[%emt 00:05:22]} bxc6 {[%clk 00:17:59]} {[%emt 00:00:20]} 27. b4
{[%clk 00:27:36]} {[%emt 00:00:03]} Kh7 {[%clk 00:16:39]} {[%emt 00:01:50]} 28.
Kc3 {[%clk 00:27:17]} {[%emt 00:00:49]} Bf5 {[%clk 00:13:56]} {[%emt 00:03:13]}
29. Bd4 {[%clk 00:21:50]} {[%emt 00:05:56]} Rff7 {[%clk 00:14:20]} {[%emt
00:00:06]} 30. Kd2 {[%clk 00:22:02]} {[%emt 00:00:19]} a6 {[%clk 00:08:21]}
{[%emt 00:06:29]} 31. Re3 {[%clk 00:21:35]} {[%emt 00:00:56]} Bg6 {[%clk
00:06:29]} {[%emt 00:02:23]} 32. Rc1 {[%clk 00:19:30]} {[%emt 00:02:35]} Rxe3
{[%clk 00:05:46]} {[%emt 00:01:12]} 33. fxe3 {[%clk 00:19:55]} {[%emt
00:00:05]} Be4 {[%emt 00:00:31]} 1/2-1/2



[ePGN "0.1;DGT LiveChess/2.2.3"]

[Event "18èmeFestival International d’Echecsde Rochefort"]
[Site "Rochefort, France"]
[Date "2019.02.21"]
[Round "8.3"]
[White "GASCON DEL NOGAL, Jose Rafael"]
[Black "RIOS, Cristhian Camilo"]
[Result "1/2-1/2"]
[TimeControl "1h30 min/40coups + 30 min +  30sec/coup"]
[WhiteTitle "GM"]
[BlackTitle "IM"]
[WhiteFideId "3902463"]
[BlackFideId "4403940"]
[WhiteElo "2457"]
[BlackElo "2482"]

1. e4 {[%clk 01:28:04]} {[%emt 00:02:55]} c5 {[%clk 01:30:51]} {[%emt
00:00:10]} 2. Ne2 {[%clk 01:28:29]} {[%emt 00:00:05]} Nc6 {[%clk 01:31:01]}
{[%emt 00:00:20]} 3. d4 {[%clk 01:28:46]} {[%emt 00:00:13]} cxd4 {[%clk
01:31:21]} {[%emt 00:00:10]} 4. Nxd4 {[%clk 01:29:09]} {[%emt 00:00:07]} Nf6
{[%clk 01:31:30]} {[%emt 00:00:21]} 5. Nc3 {[%clk 01:29:34]} {[%emt 00:00:04]}
e5 {[%clk 01:31:38]} {[%emt 00:00:22]} 6. Ndb5 {[%clk 01:29:58]} {[%emt
00:00:06]} d6 {[%clk 01:31:59]} {[%emt 00:00:10]} 7. Bg5 {[%clk 01:30:21]}
{[%emt 00:00:06]} a6 {[%clk 01:32:11]} {[%emt 00:00:19]} 8. Na3 {[%clk
01:30:43]} {[%emt 00:00:08]} b5 {[%clk 01:32:21]} {[%emt 00:00:20]} 9. Nd5
{[%clk 01:29:51]} {[%emt 00:01:22]} Qa5+ {[%clk 01:28:36]} {[%emt 00:04:15]} 10.
Bd2 {[%clk 01:29:57]} {[%emt 00:00:23]} Qd8 {[%clk 01:28:58]} {[%emt 00:00:09]}
11. Bg5 {[%clk 01:25:08]} {[%emt 00:05:19]} Qa5+ {[%clk 01:25:31]} {[%emt
00:03:58]} 12. Bd2 {[%clk 01:25:31]} {[%emt 00:00:07]} Qd8 {[%clk 01:25:47]}
{[%emt 00:00:13]} 13. Bg5 {[%clk 01:19:39]} 1/2-1/2

[Event "18èmeFestival International d’Echecsde Rochefort"]
[Site "Rochefort, France"]
[Date "2019.02.21"]
[Round "8.4"]
[White "LAURENT, Julien G."]
[Black "VAN DEN DOEL, Erik"]
[Result "0-1"]
[TimeControl "1h30 min/40coups + 30 min +  30sec/coup"]
[WhiteTitle "FM"]
[BlackTitle "GM"]
[WhiteFideId "618500"]
[BlackFideId "1003720"]
[WhiteElo "2303"]
[BlackElo "2611"]

1. Nf3 {[%clk 01:30:59]} d5 {[%clk 01:25:16]} {[%emt 00:05:45]} 2. c4 {[%clk
01:31:21]} {[%emt 00:00:08]} d4 {[%clk 01:25:41]} {[%emt 00:00:04]} 3. e3
{[%clk 01:30:20]} {[%emt 00:01:31]} Nc6 {[%clk 01:25:47]} {[%emt 00:00:25]} 4.
exd4 {[%clk 01:23:45]} {[%emt 00:07:05]} Nxd4 {[%clk 01:26:11]} {[%emt
00:00:06]} 5. Nxd4 {[%clk 01:24:13]} {[%emt 00:00:03]} Qxd4 {[%clk 01:26:35]}
{[%emt 00:00:06]} 6. Nc3 {[%clk 01:24:36]} {[%emt 00:00:06]} c6 {[%clk
01:26:52]} {[%emt 00:00:12]} 7. d3 {[%clk 01:24:39]} {[%emt 00:00:27]} Nh6
{[%clk 01:27:13]} {[%emt 00:00:09]} 8. Be3 {[%clk 01:23:32]} {[%emt 00:01:37]}
Qd8 {[%clk 01:13:30]} {[%emt 00:14:13]} 9. d4 {[%clk 01:16:50]} {[%emt
00:07:12]} Nf5 {[%clk 01:11:43]} {[%emt 00:02:17]} 10. Be2 {[%clk 01:16:32]}
{[%emt 00:00:48]} Nxe3 {[%clk 01:04:52]} {[%emt 00:07:22]} 11. fxe3 {[%clk
01:16:50]} {[%emt 00:00:12]} g6 {[%clk 01:04:57]} {[%emt 00:00:25]} 12. O-O
{[%clk 01:14:36]} {[%emt 00:02:43]} Bh6 {[%clk 01:03:42]} {[%emt 00:01:45]} 13.
Qd3 {[%clk 01:13:39]} {[%emt 00:01:27]} O-O {[%clk 00:59:40]} {[%emt 00:04:32]}
14. Kh1 {[%clk 01:12:13]} {[%emt 00:01:55]} e5 {[%clk 00:56:01]} {[%emt
00:04:10]} 15. Rad1 {[%clk 01:02:29]} {[%emt 00:10:14]} exd4 {[%clk 00:34:05]}
{[%emt 00:22:26]} 16. exd4 {[%clk 01:02:37]} {[%emt 00:00:22]} Re8 {[%clk
00:33:29]} {[%emt 00:01:07]} 17. Qf3 {[%clk 00:57:30]} {[%emt 00:05:36]} Bf5
{[%clk 00:27:42]} {[%emt 00:06:16]} 18. g4 {[%clk 00:41:55]} {[%emt 00:16:06]}
Bc2 {[%clk 00:23:51]} {[%emt 00:04:22]} 19. Qxf7+ {[%clk 00:41:48]} {[%emt
00:00:36]} Kh8 {[%clk 00:24:17]} {[%emt 00:00:04]} 20. Qxb7 {[%clk 00:31:15]}
{[%emt 00:11:03]} Rb8 {[%clk 00:15:06]} {[%emt 00:09:41]} 21. Qxc6 {[%clk
00:26:42]} {[%emt 00:05:03]} Bxd1 {[%clk 00:15:13]} {[%emt 00:00:24]} 22. Rxd1
{[%clk 00:23:31]} {[%emt 00:03:40]} Rxb2 {[%clk 00:15:33]} {[%emt 00:00:10]} 23.
Bf1 {[%clk 00:22:47]} {[%emt 00:01:14]} Rf8 {[%clk 00:09:50]} {[%emt 00:06:13]}
24. Ne4 {[%clk 00:18:42]} {[%emt 00:04:34]} Qh4 {[%clk 00:08:37]} {[%emt
00:01:43]} 25. Qd6 {[%clk 00:18:10]} {[%emt 00:01:03]} Qxg4 {[%clk 00:09:01]}
{[%emt 00:00:06]} 26. Re1 {[%clk 00:17:54]} {[%emt 00:00:46]} Rxf1+ {[%clk
00:09:14]} {[%emt 00:00:16]} 0-1

[Event "18èmeFestival International d’Echecsde Rochefort"]
[Site "Rochefort, France"]
[Date "2019.02.21"]
[Round "8.1"]
[White "SOLOZHENKIN, Evgeniy"]
[Black "ZENG, Chongsheng"]
[Result "1-0"]
[TimeControl "1h30 min/40coups + 30 min +  30sec/coup"]
[WhiteTitle "GM"]
[BlackTitle "GM"]
[WhiteFideId "4102266"]
[BlackFideId "8603847"]
[WhiteElo "2423"]
[BlackElo "2544"]

1. d4 {[%clk 01:30:54]} {[%emt 00:00:04]} Nf6 {[%clk 01:30:49]} {[%emt
00:00:11]} 2. c4 {[%clk 01:31:11]} {[%emt 00:00:14]} g6 {[%clk 01:31:13]}
{[%emt 00:00:06]} 3. g3 {[%clk 01:31:09]} {[%emt 00:00:31]} Bg7 {[%clk
01:31:33]} {[%emt 00:00:10]} 4. Bg2 {[%clk 01:31:33]} {[%emt 00:00:06]} d5
{[%clk 01:31:56]} {[%emt 00:00:08]} 5. cxd5 {[%clk 01:27:44]} {[%emt 00:04:19]}
Nxd5 {[%clk 01:31:47]} {[%emt 00:00:39]} 6. e4 {[%clk 01:27:29]} {[%emt
00:00:46]} Nb6 {[%clk 01:31:59]} {[%emt 00:00:18]} 7. Ne2 {[%clk 01:27:35]}
{[%emt 00:00:23]} c5 {[%clk 01:32:26]} {[%emt 00:00:04]} 8. d5 {[%clk
01:26:40]} {[%emt 00:01:25]} e6 {[%clk 01:32:51]} {[%emt 00:00:06]} 9. Nbc3
{[%clk 01:25:00]} {[%emt 00:02:09]} exd5 {[%clk 01:32:27]} {[%emt 00:00:55]} 10.
exd5 {[%clk 01:24:19]} {[%emt 00:01:11]} O-O {[%clk 01:32:45]} {[%emt
00:00:12]} 11. O-O {[%clk 01:24:23]} {[%emt 00:00:25]} Bf5 {[%clk 01:29:32]}
{[%emt 00:03:43]} 12. Be3 {[%clk 01:21:57]} {[%emt 00:02:55]} Na6 {[%clk
01:29:36]} {[%emt 00:00:28]} 13. b3 {[%clk 01:21:59]} {[%emt 00:00:28]} Qd7
{[%clk 01:29:14]} {[%emt 00:00:53]} 14. Rc1 {[%clk 01:18:56]} {[%emt 00:03:32]}
Rfe8 {[%clk 01:25:32]} {[%emt 00:04:12]} 15. Qd2 {[%clk 01:09:57]} {[%emt
00:09:29]} Bh3 {[%clk 01:23:00]} {[%emt 00:03:02]} 16. Bxh3 {[%clk 01:04:11]}
{[%emt 00:06:16]} Qxh3 {[%clk 01:18:30]} {[%emt 00:05:00]} 17. Rfd1 {[%clk
01:03:19]} {[%emt 00:01:22]} Rad8 {[%clk 01:18:22]} {[%emt 00:00:38]} 18. d6
{[%clk 00:55:57]} {[%emt 00:07:53]} Qf5 {[%clk 00:56:22]} {[%emt 00:22:30]} 19.
Nf4 {[%clk 00:42:50]} {[%emt 00:13:37]} Rd7 {[%clk 00:49:34]} {[%emt 00:07:19]}
20. Nb5 {[%clk 00:34:57]} {[%emt 00:08:22]} Nc8 {[%clk 00:48:17]} {[%emt
00:01:47]} 21. Nd5 {[%clk 00:30:42]} {[%emt 00:04:43]} b6 {[%clk 00:32:41]}
{[%emt 00:16:07]} 22. Bf4 {[%clk 00:30:33]} {[%emt 00:00:38]} g5 {[%clk
00:15:22]} {[%emt 00:17:50]} 23. Re1 {[%clk 00:14:08]} {[%emt 00:16:55]} Re6
{[%clk 00:05:45]} {[%emt 00:10:07]} 24. Bxg5 {[%clk 00:14:15]} {[%emt
00:00:24]} Be5 {[%clk 00:03:38]} {[%emt 00:02:37]} 25. Bf4 {[%emt 00:05:38]}
Nxd6 {[%clk 00:03:56]} {[%emt 00:00:10]} 26. Rxe5 {[%clk 00:06:51]} {[%emt
00:02:47]} Rxe5 {[%clk 00:03:55]} {[%emt 00:00:31]} 27. Bxe5 {[%clk 00:07:16]}
{[%emt 00:00:04]} Qxe5 {[%clk 00:03:11]} {[%emt 00:01:15]} 28. Re1 {[%clk
00:02:55]} {[%emt 00:04:51]} Ne4 {[%clk 00:03:21]} {[%emt 00:00:19]} 29. Rxe4
{[%clk 00:03:21]} {[%emt 00:00:04]} Qxd5 {[%clk 00:02:30]} {[%emt 00:01:22]} 30.
Rg4+ {[%clk 00:03:14]} {[%emt 00:00:35]} Kf8 {[%clk 00:02:29]} {[%emt
00:00:33]} 31. Qh6+ {[%clk 00:03:38]} {[%emt 00:00:06]} Ke7 {[%clk 00:01:28]}
{[%emt 00:01:32]} 32. Nc3 {[%clk 00:04:05]} {[%emt 00:00:03]} Qd3 {[%clk
00:01:22]} {[%emt 00:00:36]} 33. Re4+ {[%clk 00:03:46]} {[%emt 00:00:49]} Kd8
{[%clk 00:01:44]} {[%emt 00:00:08]} 34. Qf8+ {[%clk 00:03:44]} {[%emt
00:00:31]} Kc7 {[%clk 00:02:13]} {[%emt 00:00:02]} 35. Re3 {[%clk 00:04:04]}
{[%emt 00:00:09]} Qg6 {[%clk 00:00:42]} {[%emt 00:02:02]} 36. Qa8 {[%clk
00:03:22]} {[%emt 00:01:12]} Qc6 {[%clk 00:01:00]} {[%emt 00:00:12]} 37. Qxa7+
{[%clk 00:02:35]} {[%emt 00:01:16]} Qb7 {[%clk 00:01:28]} {[%emt 00:00:02]} 38.
Qxb7+ {[%clk 00:02:08]} {[%emt 00:00:57]} Kxb7 {[%clk 00:01:57]} {[%emt
00:00:01]} 39. Re5 {[%clk 00:02:26]} {[%emt 00:00:10]} Nb4 {[%clk 00:02:07]}
{[%emt 00:00:22]} 40. Rf5 {[%clk 00:01:57]} {[%emt 00:00:59]} Ka6 {[%clk
00:01:20]} {[%emt 00:01:17]} 41. Kg2 {[%clk 00:01:35]} {[%emt 00:00:51]} Nd3
{[%clk 00:29:45]} {[%emt 00:02:06]} 42. h4 {[%clk 00:30:11]} {[%emt 00:01:54]}
b5 {[%clk 00:25:33]} {[%emt 00:04:42]} 43. h5 {[%clk 00:27:47]} {[%emt
00:02:53]} Ka5 {[%clk 00:25:37]} {[%emt 00:00:26]} 44. a3 {[%clk 00:26:58]}
{[%emt 00:01:19]} b4 {[%clk 00:25:01]} {[%emt 00:01:06]} 45. axb4+ {[%clk
00:23:13]} {[%emt 00:04:16]} Kxb4 {[%clk 00:24:24]} {[%emt 00:01:07]} 46. Ne4
{[%clk 00:23:35]} {[%emt 00:00:05]} Rc7 {[%clk 00:24:27]} {[%emt 00:00:28]} 47.
Rd5 {[%clk 00:13:05]} {[%emt 00:11:00]} Nc1 {[%clk 00:24:13]} {[%emt 00:00:44]}
48. h6 {[%clk 00:13:13]} {[%emt 00:00:22]} Nxb3 {[%clk 00:24:31]} {[%emt
00:00:12]} 49. Nf6 {[%clk 00:13:37]} {[%emt 00:00:06]} c4 {[%clk 00:19:29]}
{[%emt 00:05:33]} 50. Rh5 {[%clk 00:10:19]} {[%emt 00:03:47]} Rc8 {[%clk
00:16:01]} {[%emt 00:03:58]} 51. Nd5+ {[%clk 00:09:35]} {[%emt 00:01:14]} Ka3
{[%clk 00:13:52]} {[%emt 00:02:39]} 52. Rf5 {[%clk 00:08:52]} {[%emt 00:01:12]}
Rc5 {[%clk 00:12:14]} {[%emt 00:02:09]} 53. g4 {[%clk 00:09:19]} {[%emt
00:00:03]} Nd4 {[%clk 00:10:51]} {[%emt 00:01:52]} 54. Re5 {[%clk 00:09:30]}
{[%emt 00:00:16]} Ne6 {[%clk 00:06:59]} {[%emt 00:04:24]} 55. Re3+ {[%clk
00:06:54]} {[%emt 00:03:06]} Kb2 {[%clk 00:06:03]} {[%emt 00:01:26]} 56. Nc3
{[%clk 00:07:23]} {[%emt 00:00:01]} Ra5 {[%clk 00:05:20]} {[%emt 00:01:13]} 57.
Kg3 {[%clk 00:07:25]} {[%emt 00:00:27]} Nc5 {[%clk 00:03:42]} {[%emt 00:02:09]}
58. Nd5 {[%clk 00:06:08]} {[%emt 00:01:45]} Nd3 {[%clk 00:02:45]} {[%emt
00:01:29]} 59. Nf6 {[%clk 00:06:22]} {[%emt 00:00:14]} Re5 {[%clk 00:00:44]}
{[%emt 00:02:34]} 60. Nxh7 {[%clk 00:04:13]} {[%emt 00:02:38]} Rxe3+ {[%clk
00:00:53]} {[%emt 00:00:21]} 61. fxe3 {[%clk 00:04:42]} {[%emt 00:00:01]} Ne5
{[%clk 00:00:59]} {[%emt 00:00:24]} 62. Ng5 {[%clk 00:04:56]} {[%emt 00:00:15]}
c3 {[%clk 00:00:51]} {[%emt 00:00:40]} 63. h7 {[%clk 00:05:22]} {[%emt
00:00:04]} Ng6 {[%clk 00:01:19]} {[%emt 00:00:02]} 64. Nf3 {[%clk 00:05:46]}
{[%emt 00:00:05]} Kc2 {[%clk 00:00:34]} {[%emt 00:01:17]} 65. Ne5 {[%clk
00:04:58]} {[%emt 00:01:16]} Nh8 {[%clk 00:00:41]} {[%emt 00:00:24]} 66. Kf4
{[%clk 00:04:43]} {[%emt 00:00:44]} Kd2 {[%clk 00:01:05]} {[%emt 00:00:08]} 67.
Nc4+ {[%clk 00:05:06]} {[%emt 00:00:06]} Kd3 {[%clk 00:00:42]} {[%emt
00:00:53]} 68. Na3 {[%clk 00:05:29]} {[%emt 00:00:06]} Ng6+ {[%clk 00:01:02]}
{[%emt 00:00:11]} 69. Kf5 {[%clk 00:05:08]} {[%emt 00:00:50]} Kxe3 {[%clk
00:01:17]} {[%emt 00:00:16]} 70. Kf6 {[%clk 00:05:06]} {[%emt 00:00:31]} Kf4
{[%clk 00:01:43]} {[%emt 00:00:06]} 71. Kxf7 {[%clk 00:05:31]} {[%emt
00:00:05]} Kg5 {[%clk 00:01:36]} {[%emt 00:00:37]} 72. Kg7 {[%clk 00:05:51]}
{[%emt 00:00:10]} 1-0